[Event "Titled Tuesday Blitz November 08 Late 2022"]
[White "Rodriguez Fontecha, Marcos"]
[Black "Cabarkapa, Novak"]
[WhiteFideId "2256576"]
[BlackFideId "943746"]
[WhiteElo "2540"]
[BlackElo "2778"]
[Result "0-1"]
[Round "02"]
[TimeControl "180+1"]
[Date "2022.11.09"]
[WhiteClock "0:00:03"]
[BlackClock "0:00:34"]

1. d4 {[%clk 0:03:00]}  Nf6 {[%clk 0:02:59]} 2. Nf3 {[%clk 0:03:01]}  g6 {[%clk 0:02:59]} 3. Bf4 {[%clk 0:03:01]}  Bg7 {[%clk 0:02:59]} 4. Nc3 {[%clk 0:03:01]}  d5 {[%clk 0:02:57]} 5. Qd2 {[%clk 0:03:02]}  O-O {[%clk 0:02:55]} 6. Bh6 {[%clk 0:03:01]}  Ne4 {[%clk 0:02:49]} 7. Nxe4 {[%clk 0:03:00]}  dxe4 {[%clk 0:02:50]} 8. Bxg7 {[%clk 0:02:58]}  Kxg7 {[%clk 0:02:51]} 9. Ne5 {[%clk 0:02:58]}  c5 {[%clk 0:02:43]} 10. O-O-O {[%clk 0:02:55]}  f6 {[%clk 0:02:37]} 11. Nc4 {[%clk 0:02:49]}  b5 {[%clk 0:02:17]} 12. Na3 {[%clk 0:02:38]}  a6 {[%clk 0:02:06]} 13. dxc5 {[%clk 0:02:36]}  Qc7 {[%clk 0:02:06]} 14. Qd4 {[%clk 0:02:17]}  Nc6 {[%clk 0:01:58]} 15. Qxe4 {[%clk 0:02:16]}  Bf5 {[%clk 0:01:59]} 16. Qf3 {[%clk 0:02:05]}  Rad8 {[%clk 0:01:55]} 17. Rxd8 {[%clk 0:02:01]}  Rxd8 {[%clk 0:01:55]} 18. e3 {[%clk 0:01:52]}  Nb4 {[%clk 0:01:49]} 19. e4 {[%clk 0:01:33]}  Qd7 {[%clk 0:01:24]} 20. Bxb5 {[%clk 0:01:26]}  Qd2+ {[%clk 0:01:17]} 21. Kb1 {[%clk 0:01:25]}  Bxe4 {[%clk 0:01:12]} 22. Qe3 {[%clk 0:00:54]}  Qxe3 {[%clk 0:01:08]} 23. fxe3 {[%clk 0:00:53]}  axb5 {[%clk 0:01:09]} 24. Nxb5 {[%clk 0:00:49]}  Nxc2 {[%clk 0:01:03]} 25. Nc3 {[%clk 0:00:42]}  Bd3 {[%clk 0:01:04]} 26. Kc1 {[%clk 0:00:35]}  Nxe3 {[%clk 0:00:46]} 27. Re1 {[%clk 0:00:35]}  Nxg2 {[%clk 0:00:40]} 28. Rxe7+ {[%clk 0:00:34]}  Kh6 {[%clk 0:00:41]} 29. c6 {[%clk 0:00:31]}  f5 {[%clk 0:00:41]} 30. c7 {[%clk 0:00:31]}  Rc8 {[%clk 0:00:42]} 31. Nd5 {[%clk 0:00:31]}  f4 {[%clk 0:00:35]} 32. Nb6 {[%clk 0:00:27]}  f3 {[%clk 0:00:35]} 33. Nxc8 {[%clk 0:00:20]}  f2 {[%clk 0:00:36]} 34. Rf7 {[%clk 0:00:14]}  Bf5 {[%clk 0:00:36]} 35. Rxf5 {[%clk 0:00:12]}  gxf5 {[%clk 0:00:36]} 36. Nd6 {[%clk 0:00:10]}  f1=Q+ {[%clk 0:00:36]} 37. Kc2 {[%clk 0:00:09]}  Ne3+ {[%clk 0:00:33]} 38. Kd2 {[%clk 0:00:05]}  Nc4+ {[%clk 0:00:34]} 39. Kc3 {[%clk 0:00:03]}  Nxd6 {[%clk 0:00:34]} 0-1


[Site "https://www.chess.com"]

[Event "Titled Tuesday Blitz November 08 Late 2022"]
[White "Roux, Baptiste"]
[Black "Baskakov, Egor"]
[WhiteFideId "36017450"]
[BlackFideId "24197866"]
[WhiteElo "2077"]
[BlackElo "2211"]
[Result "0-1"]
[Round "02"]
[TimeControl "180+1"]
[Date "2022.11.09"]
[WhiteClock "0:00:13"]
[BlackClock "0:01:40"]

1. e4 {[%clk 0:03:00]}  c5 {[%clk 0:03:00]} 2. Nf3 {[%clk 0:02:54]}  Nf6 {[%clk 0:03:00]} 3. Nc3 {[%clk 0:02:51]}  d5 {[%clk 0:03:00]} 4. e5 {[%clk 0:02:47]}  Ne4 {[%clk 0:02:59]} 5. d3 {[%clk 0:02:31]}  Nxc3 {[%clk 0:02:59]} 6. bxc3 {[%clk 0:02:32]}  Nc6 {[%clk 0:02:59]} 7. Bf4 {[%clk 0:02:29]}  g6 {[%clk 0:03:00]} 8. Be2 {[%clk 0:02:25]}  Bg7 {[%clk 0:03:00]} 9. O-O {[%clk 0:02:25]}  O-O {[%clk 0:03:01]} 10. Rb1 {[%clk 0:02:23]}  b6 {[%clk 0:03:00]} 11. d4 {[%clk 0:02:23]}  Na5 {[%clk 0:02:58]} 12. Qd2 {[%clk 0:02:20]}  Nc4 {[%clk 0:02:57]} 13. Bxc4 {[%clk 0:02:19]}  dxc4 {[%clk 0:02:58]} 14. d5 {[%clk 0:02:14]}  Bb7 {[%clk 0:02:57]} 15. Rfd1 {[%clk 0:02:14]}  Qd7 {[%clk 0:02:58]} 16. Ng5 {[%clk 0:01:48]}  Qf5 {[%clk 0:02:55]} 17. Re1 {[%clk 0:01:24]}  Rad8 {[%clk 0:02:51]} 18. d6 {[%clk 0:01:24]}  h6 {[%clk 0:02:46]} 19. Nh3 {[%clk 0:01:08]}  g5 {[%clk 0:02:44]} 20. Bg3 {[%clk 0:00:50]}  exd6 {[%clk 0:02:44]} 21. exd6 {[%clk 0:00:50]}  Rd7 {[%clk 0:02:45]} 22. f3 {[%clk 0:00:40]}  Rfd8 {[%clk 0:02:44]} 23. Rbd1 {[%clk 0:00:39]}  Bf8 {[%clk 0:02:40]} 24. Nf2 {[%clk 0:00:38]}  Qg6 {[%clk 0:02:34]} 25. Ng4 {[%clk 0:00:26]}  Bxd6 {[%clk 0:02:25]} 26. Bxd6 {[%clk 0:00:20]}  Rxd6 {[%clk 0:02:26]} 27. Re8+ {[%clk 0:00:20]}  Rxe8 {[%clk 0:02:24]} 28. Qxd6 {[%clk 0:00:19]}  Re1+ {[%clk 0:02:20]} 29. Kf2 {[%clk 0:00:18]}  Re6 {[%clk 0:02:11]} 30. Qd8+ {[%clk 0:00:17]}  Kg7 {[%clk 0:02:11]} 31. Rd2 {[%clk 0:00:17]}  h5 {[%clk 0:02:02]} 32. Ne3 {[%clk 0:00:17]}  g4 {[%clk 0:02:00]} 33. f4 {[%clk 0:00:17]}  Be4 {[%clk 0:01:53]} 34. Nxc4 {[%clk 0:00:15]}  h4 {[%clk 0:01:49]} 35. Ne5 {[%clk 0:00:15]}  g3+ {[%clk 0:01:49]} 36. hxg3 {[%clk 0:00:15]}  Qxg3+ {[%clk 0:01:49]} 37. Kf1 {[%clk 0:00:14]}  Qxf4+ {[%clk 0:01:47]} 38. Nf3 {[%clk 0:00:14]}  Bxf3 {[%clk 0:01:47]} 39. Rf2 {[%clk 0:00:13]}  Qc1+ {[%clk 0:01:40]} 0-1


[Site "https://www.chess.com"]

[Event "Titled Tuesday Blitz November 08 Late 2022"]
[White "Shapiro, Bryan"]
[Black "Goryachkina, Aleksandra"]
[WhiteFideId "2087740"]
[BlackFideId "4147103"]
[WhiteElo "1900"]
[BlackElo "2484"]
[Result "0-1"]
[Round "02"]
[TimeControl "180+1"]
[Date "2022.11.09"]
[WhiteClock "0:00:11"]
[BlackClock "0:00:39"]

1. d4 {[%clk 0:02:58]}  Nf6 {[%clk 0:02:59]} 2. c4 {[%clk 0:02:55]}  e6 {[%clk 0:02:59]} 3. Nf3 {[%clk 0:02:54]}  d5 {[%clk 0:02:58]} 4. Nc3 {[%clk 0:02:53]}  Nbd7 {[%clk 0:02:57]} 5. cxd5 {[%clk 0:02:45]}  exd5 {[%clk 0:02:57]} 6. Bg5 {[%clk 0:02:45]}  c6 {[%clk 0:02:54]} 7. Qc2 {[%clk 0:02:45]}  Be7 {[%clk 0:02:51]} 8. e3 {[%clk 0:02:43]}  Nh5 {[%clk 0:02:49]} 9. Bxe7 {[%clk 0:02:41]}  Qxe7 {[%clk 0:02:50]} 10. Be2 {[%clk 0:02:35]}  O-O {[%clk 0:02:47]} 11. O-O {[%clk 0:02:30]}  g6 {[%clk 0:02:47]} 12. Rab1 {[%clk 0:02:20]}  a5 {[%clk 0:02:42]} 13. a3 {[%clk 0:02:11]}  Nb6 {[%clk 0:02:36]} 14. b3 {[%clk 0:01:57]}  Qxa3 {[%clk 0:02:20]} 15. Ne5 {[%clk 0:01:53]}  Ng7 {[%clk 0:02:14]} 16. f4 {[%clk 0:01:49]}  Bf5 {[%clk 0:02:11]} 17. Bd3 {[%clk 0:01:50]}  Bxd3 {[%clk 0:02:09]} 18. Qxd3 {[%clk 0:01:51]}  Qe7 {[%clk 0:02:07]} 19. Rbe1 {[%clk 0:01:42]}  Rfe8 {[%clk 0:02:03]} 20. Kh1 {[%clk 0:01:31]}  Nd7 {[%clk 0:01:29]} 21. Nf3 {[%clk 0:01:20]}  Nf6 {[%clk 0:01:23]} 22. Ne5 {[%clk 0:01:19]}  Nf5 {[%clk 0:01:21]} 23. Na4 {[%clk 0:01:17]}  Ne4 {[%clk 0:01:18]} 24. Nc3 {[%clk 0:00:56]}  Nfd6 {[%clk 0:01:15]} 25. Rf3 {[%clk 0:00:42]}  Nxc3 {[%clk 0:01:12]} 26. Qxc3 {[%clk 0:00:42]}  Ne4 {[%clk 0:01:12]} 27. Qc2 {[%clk 0:00:40]}  Qb4 {[%clk 0:00:57]} 28. Ra1 {[%clk 0:00:36]}  Qd2 {[%clk 0:00:48]} 29. Qxd2 {[%clk 0:00:18]}  Nxd2 {[%clk 0:00:48]} 30. Rh3 {[%clk 0:00:19]}  Nxb3 {[%clk 0:00:44]} 31. Rb1 {[%clk 0:00:18]}  a4 {[%clk 0:00:44]} 32. Nd7 {[%clk 0:00:17]}  Kg7 {[%clk 0:00:42]} 33. Nb6 {[%clk 0:00:16]}  Ra6 {[%clk 0:00:42]} 34. Nd7 {[%clk 0:00:11]}  a3 {[%clk 0:00:39]} 0-1


[Site "https://www.chess.com"]

[Event "Titled Tuesday Blitz November 08 Late 2022"]
[White "Silva, Caio Henrique Angelico"]
[Black "Leitao, Rafael"]
[WhiteFideId "22777210"]
[BlackFideId "2101246"]
[WhiteElo "1990"]
[BlackElo "2609"]
[Result "1/2-1/2"]
[Round "02"]
[TimeControl "180+1"]
[Date "2022.11.09"]
[WhiteClock "0:00:09"]
[BlackClock "0:00:32"]

1. Nf3 {[%clk 0:02:58]}  Nf6 {[%clk 0:02:59]} 2. g3 {[%clk 0:02:57]}  d5 {[%clk 0:02:59]} 3. Bg2 {[%clk 0:02:57]}  c6 {[%clk 0:03:00]} 4. O-O {[%clk 0:02:57]}  Bf5 {[%clk 0:03:00]} 5. d4 {[%clk 0:02:55]}  e6 {[%clk 0:03:00]} 6. c4 {[%clk 0:02:53]}  Nbd7 {[%clk 0:02:58]} 7. Nc3 {[%clk 0:02:52]}  Be7 {[%clk 0:02:53]} 8. Nd2 {[%clk 0:02:44]}  Kf8 {[%clk 0:02:37]} 9. e4 {[%clk 0:02:38]}  Kg8 {[%clk 0:02:38]} 10. exf5 {[%clk 0:02:39]}  exf5 {[%clk 0:02:25]} 11. cxd5 {[%clk 0:02:38]}  cxd5 {[%clk 0:02:23]} 12. Nxd5 {[%clk 0:02:36]}  Nxd5 {[%clk 0:02:23]} 13. Bxd5 {[%clk 0:02:37]}  Nb6 {[%clk 0:02:21]} 14. Bxb7 {[%clk 0:02:35]}  Rb8 {[%clk 0:02:20]} 15. Bg2 {[%clk 0:02:34]}  Qxd4 {[%clk 0:02:19]} 16. Nb3 {[%clk 0:02:33]}  Qf6 {[%clk 0:02:16]} 17. Qd4 {[%clk 0:02:26]}  Qxd4 {[%clk 0:02:08]} 18. Nxd4 {[%clk 0:02:23]}  Bf6 {[%clk 0:02:05]} 19. Nxf5 {[%clk 0:02:17]}  g6 {[%clk 0:01:56]} 20. Nh6+ {[%clk 0:02:08]}  Kf8 {[%clk 0:01:56]} 21. Ng4 {[%clk 0:02:07]}  Bg7 {[%clk 0:01:49]} 22. Bf4 {[%clk 0:02:03]}  Re8 {[%clk 0:01:42]} 23. Bd6+ {[%clk 0:01:57]}  Kg8 {[%clk 0:01:42]} 24. Rae1 {[%clk 0:01:56]}  Rd8 {[%clk 0:01:39]} 25. Be5 {[%clk 0:01:51]}  h5 {[%clk 0:01:37]} 26. Bxg7 {[%clk 0:01:34]}  Kxg7 {[%clk 0:01:36]} 27. Ne5 {[%clk 0:01:28]}  Rd2 {[%clk 0:01:35]} 28. Rb1 {[%clk 0:01:24]}  Rc8 {[%clk 0:01:31]} 29. Rfc1 {[%clk 0:01:21]}  Rxb2 {[%clk 0:01:28]} 30. Rxb2 {[%clk 0:01:13]}  Rxc1+ {[%clk 0:01:28]} 31. Bf1 {[%clk 0:01:13]}  Re1 {[%clk 0:01:08]} 32. Nd3 {[%clk 0:01:09]}  Ra1 {[%clk 0:01:08]} 33. Kg2 {[%clk 0:01:06]}  Nc4 {[%clk 0:01:08]} 34. Rc2 {[%clk 0:01:00]}  Nb6 {[%clk 0:01:05]} 35. Be2 {[%clk 0:00:58]}  a5 {[%clk 0:01:03]} 36. Nc5 {[%clk 0:00:53]}  Nd5 {[%clk 0:01:01]} 37. Nb3 {[%clk 0:00:50]}  Re1 {[%clk 0:01:01]} 38. Bf3 {[%clk 0:00:43]}  Nb4 {[%clk 0:01:00]} 39. Re2 {[%clk 0:00:40]}  Ra1 {[%clk 0:00:54]} 40. Nxa5 {[%clk 0:00:40]}  Nd3 {[%clk 0:00:53]} 41. Nb3 {[%clk 0:00:38]}  Rb1 {[%clk 0:00:50]} 42. Be4 {[%clk 0:00:37]}  Ne1+ {[%clk 0:00:50]} 43. Kf1 {[%clk 0:00:35]}  Nd3+ {[%clk 0:00:47]} 44. Kg2 {[%clk 0:00:32]}  Ne1+ {[%clk 0:00:47]} 45. Kh3 {[%clk 0:00:32]}  Rd1 {[%clk 0:00:44]} 46. a4 {[%clk 0:00:30]}  g5 {[%clk 0:00:44]} 47. f3 {[%clk 0:00:28]}  f5 {[%clk 0:00:42]} 48. Rxe1 {[%clk 0:00:18]}  g4+ {[%clk 0:00:36]} 49. Kg2 {[%clk 0:00:15]}  Rxe1 {[%clk 0:00:35]} 50. Bd3 {[%clk 0:00:10]}  Re3 {[%clk 0:00:35]} 51. Nc5 {[%clk 0:00:10]}  Re5 {[%clk 0:00:32]} 52. Nb3 {[%clk 0:00:08]}  Re3 {[%clk 0:00:31]} 53. Nc5 {[%clk 0:00:08]}  Re5 {[%clk 0:00:32]} 54. Nb3 {[%clk 0:00:09]}  Re3 {[%clk 0:00:32]} 1/2-1/2


[Site "https://www.chess.com"]

[Event "Titled Tuesday Blitz November 08 Late 2022"]
[White "Sourath Biswas"]
[Black "Zhigalko, Sergei"]
[WhiteFideId "35091484"]
[BlackFideId "13502956"]
[WhiteElo "2164"]
[BlackElo "2662"]
[Result "1/2-1/2"]
[Round "02"]
[TimeControl "180+1"]
[Date "2022.11.08"]
[WhiteClock "0:00:19"]
[BlackClock "0:00:02"]

1. d4 {[%clk 0:03:00]}  Nf6 {[%clk 0:03:00]} 2. Bf4 {[%clk 0:03:00]}  e6 {[%clk 0:03:00]} 3. e3 {[%clk 0:02:58]}  d6 {[%clk 0:02:59]} 4. Nf3 {[%clk 0:02:59]}  b6 {[%clk 0:02:58]} 5. Bb5+ {[%clk 0:02:57]}  Nbd7 {[%clk 0:02:57]} 6. Bc6 {[%clk 0:02:56]}  Rb8 {[%clk 0:02:57]} 7. c4 {[%clk 0:02:55]}  Nh5 {[%clk 0:02:57]} 8. Bg5 {[%clk 0:02:54]}  Be7 {[%clk 0:02:57]} 9. Bxe7 {[%clk 0:02:55]}  Qxe7 {[%clk 0:02:58]} 10. d5 {[%clk 0:02:43]}  O-O {[%clk 0:02:56]} 11. O-O {[%clk 0:02:42]}  Nhf6 {[%clk 0:02:49]} 12. Nc3 {[%clk 0:02:40]}  e5 {[%clk 0:02:45]} 13. a4 {[%clk 0:02:36]}  a5 {[%clk 0:02:45]} 14. Nb5 {[%clk 0:02:35]}  Nc5 {[%clk 0:02:44]} 15. Nd2 {[%clk 0:02:30]}  Bf5 {[%clk 0:02:35]} 16. f3 {[%clk 0:02:18]}  h6 {[%clk 0:02:15]} 17. e4 {[%clk 0:02:06]}  Bh7 {[%clk 0:02:15]} 18. Nb3 {[%clk 0:02:07]}  Nxb3 {[%clk 0:02:13]} 19. Qxb3 {[%clk 0:02:08]}  Nh5 {[%clk 0:02:14]} 20. Rae1 {[%clk 0:02:01]}  Kh8 {[%clk 0:02:10]} 21. Qc3 {[%clk 0:01:54]}  f5 {[%clk 0:01:59]} 22. exf5 {[%clk 0:01:54]}  Rxf5 {[%clk 0:01:55]} 23. c5 {[%clk 0:01:28]}  dxc5 {[%clk 0:01:17]} 24. g4 {[%clk 0:01:27]}  Rg5 {[%clk 0:01:12]} 25. h4 {[%clk 0:01:25]}  Rg6 {[%clk 0:01:13]} 26. Qxe5 {[%clk 0:01:12]}  Qxh4 {[%clk 0:01:12]} 27. Qxc7 {[%clk 0:01:12]}  Rxg4+ {[%clk 0:00:27]} 28. fxg4 {[%clk 0:01:12]}  Qxg4+ {[%clk 0:00:28]} 29. Kh2 {[%clk 0:00:20]}  Qh4+ {[%clk 0:00:28]} 30. Kg1 {[%clk 0:00:21]}  Qg4+ {[%clk 0:00:28]} 31. Kh2 {[%clk 0:00:21]}  Qh4+ {[%clk 0:00:12]} 32. Kg1 {[%clk 0:00:20]}  Qg5+ {[%clk 0:00:05]} 33. Kh2 {[%clk 0:00:19]}  Qh4+ {[%clk 0:00:02]} 1/2-1/2


[Site "https://www.chess.com"]

[Event "Titled Tuesday Blitz November 08 Late 2022"]
[White "Therrien, Alex L"]
[Black "Mr_Penings"]
[WhiteFideId "412856"]
[WhiteElo "2214"]
[BlackElo "2692"]
[Result "0-1"]
[Round "02"]
[TimeControl "180+1"]
[Date "2022.11.09"]
[WhiteClock "0:00:02"]
[BlackClock "0:01:30"]

1. d4 {[%clk 0:03:00]}  Nf6 {[%clk 0:02:59]} 2. c4 {[%clk 0:03:00]}  d6 {[%clk 0:02:59]} 3. Nf3 {[%clk 0:03:00]}  Nbd7 {[%clk 0:02:59]} 4. Nc3 {[%clk 0:02:57]}  e5 {[%clk 0:02:59]} 5. e4 {[%clk 0:02:57]}  g6 {[%clk 0:02:59]} 6. g3 {[%clk 0:02:57]}  Bg7 {[%clk 0:02:58]} 7. Bg2 {[%clk 0:02:57]}  O-O {[%clk 0:02:59]} 8. O-O {[%clk 0:02:57]}  c6 {[%clk 0:02:59]} 9. Re1 {[%clk 0:02:55]}  Qa5 {[%clk 0:02:52]} 10. d5 {[%clk 0:02:49]}  cxd5 {[%clk 0:02:45]} 11. cxd5 {[%clk 0:02:49]}  b5 {[%clk 0:02:31]} 12. a3 {[%clk 0:02:41]}  b4 {[%clk 0:02:10]} 13. Na2 {[%clk 0:02:41]}  bxa3 {[%clk 0:02:09]} 14. bxa3 {[%clk 0:02:41]}  Nc5 {[%clk 0:02:05]} 15. Qc2 {[%clk 0:02:23]}  Bd7 {[%clk 0:01:51]} 16. Bd2 {[%clk 0:02:20]}  Qxa3 {[%clk 0:01:44]} 17. Nxe5 {[%clk 0:01:37]}  Nb3 {[%clk 0:01:31]} 18. Rab1 {[%clk 0:00:35]}  Nd4 {[%clk 0:01:31]} 19. Nc4 {[%clk 0:00:07]}  Nxc2 {[%clk 0:01:31]} 20. Nxa3 {[%clk 0:00:05]}  Nxa3 {[%clk 0:01:32]} 21. Rb7 {[%clk 0:00:04]}  Rfb8 {[%clk 0:01:29]} 22. Rxb8+ {[%clk 0:00:02]}  Rxb8 {[%clk 0:01:30]} 23. Nc3 {[%clk 0:00:02]}  Nc4 {[%clk 0:01:30]} 0-1


[Site "https://www.chess.com"]

[Event "Titled Tuesday Blitz November 08 Late 2022"]
[White "Vlassov, Nikolai"]
[Black "Kamsky, Gata"]
[WhiteFideId "4103360"]
[BlackFideId "2000024"]
[WhiteElo "2324"]
[BlackElo "2666"]
[Result "1/2-1/2"]
[Round "02"]
[TimeControl "180+1"]
[Date "2022.11.08"]
[WhiteClock "0:00:22"]
[BlackClock "0:00:09"]

1. e4 {[%clk 0:03:00]}  c5 {[%clk 0:02:51]} 2. c3 {[%clk 0:03:00]}  Nf6 {[%clk 0:02:43]} 3. e5 {[%clk 0:03:00]}  Nd5 {[%clk 0:02:43]} 4. d4 {[%clk 0:03:01]}  cxd4 {[%clk 0:02:43]} 5. cxd4 {[%clk 0:03:02]}  d6 {[%clk 0:02:39]} 6. Bc4 {[%clk 0:03:02]}  Nb6 {[%clk 0:02:35]} 7. Bb3 {[%clk 0:03:02]}  dxe5 {[%clk 0:02:31]} 8. Qh5 {[%clk 0:03:02]}  e6 {[%clk 0:02:19]} 9. dxe5 {[%clk 0:03:02]}  N8d7 {[%clk 0:02:01]} 10. Nc3 {[%clk 0:02:57]}  Nc5 {[%clk 0:01:56]} 11. Nf3 {[%clk 0:02:47]}  g6 {[%clk 0:01:55]} 12. Qg5 {[%clk 0:02:45]}  Nd3+ {[%clk 0:01:52]} 13. Ke2 {[%clk 0:02:45]}  Nxc1+ {[%clk 0:01:48]} 14. Raxc1 {[%clk 0:02:44]}  Qxg5 {[%clk 0:01:39]} 15. Nxg5 {[%clk 0:02:44]}  Bg7 {[%clk 0:01:34]} 16. f4 {[%clk 0:02:37]}  O-O {[%clk 0:01:33]} 17. h4 {[%clk 0:01:57]}  h6 {[%clk 0:01:24]} 18. Nge4 {[%clk 0:01:56]}  h5 {[%clk 0:01:19]} 19. g4 {[%clk 0:01:52]}  hxg4 {[%clk 0:01:17]} 20. h5 {[%clk 0:01:51]}  Bd7 {[%clk 0:00:55]} 21. Rcg1 {[%clk 0:01:20]}  a5 {[%clk 0:00:37]} 22. Rxg4 {[%clk 0:01:15]}  a4 {[%clk 0:00:36]} 23. Bc2 {[%clk 0:01:15]}  Nd5 {[%clk 0:00:31]} 24. h6 {[%clk 0:00:46]}  Bh8 {[%clk 0:00:30]} 25. h7+ {[%clk 0:00:46]}  Kg7 {[%clk 0:00:30]} 26. Rgh4 {[%clk 0:00:33]}  Rfc8 {[%clk 0:00:29]} 27. Bd3 {[%clk 0:00:29]}  a3 {[%clk 0:00:29]} 28. Nxd5 {[%clk 0:00:24]}  exd5 {[%clk 0:00:29]} 29. Nf6 {[%clk 0:00:24]}  axb2 {[%clk 0:00:22]} 30. Nxd7 {[%clk 0:00:24]}  Rxa2 {[%clk 0:00:21]} 31. Rb1 {[%clk 0:00:19]}  Rc1 {[%clk 0:00:19]} 32. Rh1 {[%clk 0:00:19]}  Ra1 {[%clk 0:00:17]} 33. Rxb2 {[%clk 0:00:14]}  Rxh1 {[%clk 0:00:16]} 34. Rxb7 {[%clk 0:00:15]}  Rh2+ {[%clk 0:00:16]} 35. Ke3 {[%clk 0:00:15]}  Re1+ {[%clk 0:00:15]} 36. Kd4 {[%clk 0:00:16]}  Rh4 {[%clk 0:00:14]} 37. e6 {[%clk 0:00:16]}  Rxf4+ {[%clk 0:00:14]} 38. Kc5 {[%clk 0:00:16]}  Rxe6 {[%clk 0:00:15]} 39. Nb6 {[%clk 0:00:15]}  Re3 {[%clk 0:00:14]} 40. Nxd5 {[%clk 0:00:15]}  Rxd3 {[%clk 0:00:14]} 41. Nxf4 {[%clk 0:00:16]}  Rf3 {[%clk 0:00:14]} 42. Ne6+ {[%clk 0:00:16]}  Kh6 {[%clk 0:00:13]} 43. Nd8 {[%clk 0:00:16]}  Kxh7 {[%clk 0:00:12]} 44. Nxf7 {[%clk 0:00:16]}  Rf5+ {[%clk 0:00:12]} 45. Kd6 {[%clk 0:00:16]}  Bg7 {[%clk 0:00:13]} 46. Ke6 {[%clk 0:00:17]}  Rf6+ {[%clk 0:00:13]} 47. Ke7 {[%clk 0:00:17]}  Rf5 {[%clk 0:00:13]} 48. Rb3 {[%clk 0:00:17]}  Bf6+ {[%clk 0:00:12]} 49. Ke6 {[%clk 0:00:17]}  Kg7 {[%clk 0:00:12]} 50. Rh3 {[%clk 0:00:17]}  Ra5 {[%clk 0:00:12]} 51. Nd6 {[%clk 0:00:17]}  Ra6 {[%clk 0:00:12]} 52. Kd5 {[%clk 0:00:18]}  Be7 {[%clk 0:00:11]} 53. Ne4 {[%clk 0:00:18]}  Ra5+ {[%clk 0:00:11]} 54. Ke6 {[%clk 0:00:18]}  Bf8 {[%clk 0:00:11]} 55. Rb3 {[%clk 0:00:19]}  Ra6+ {[%clk 0:00:11]} 56. Ke5 {[%clk 0:00:19]}  Ra5+ {[%clk 0:00:10]} 57. Ke6 {[%clk 0:00:19]}  Ra7 {[%clk 0:00:10]} 58. Ke5 {[%clk 0:00:20]}  Re7+ {[%clk 0:00:10]} 59. Kf4 {[%clk 0:00:20]}  Kf7 {[%clk 0:00:10]} 60. Ng5+ {[%clk 0:00:20]}  Kg8 {[%clk 0:00:10]} 61. Rb6 {[%clk 0:00:20]}  Kg7 {[%clk 0:00:09]} 62. Kg4 {[%clk 0:00:20]}  Ra7 {[%clk 0:00:08]} 63. Ne6+ {[%clk 0:00:21]}  Kf7 {[%clk 0:00:08]} 64. Nxf8 {[%clk 0:00:21]}  Kxf8 {[%clk 0:00:08]} 65. Rxg6 {[%clk 0:00:22]}  Rg7 {[%clk 0:00:09]} 66. Rxg7 {[%clk 0:00:22]}  Kxg7 {[%clk 0:00:09]} 1/2-1/2


[Site "https://www.chess.com"]

[Event "Titled Tuesday Blitz November 08 Late 2022"]
[White "Yi, Richard"]
[Black "Schuster, Karsten"]
[WhiteFideId "2079518"]
[BlackFideId "4611071"]
[WhiteElo "2147"]
[BlackElo "2294"]
[Result "1-0"]
[Round "02"]
[TimeControl "180+1"]
[Date "2022.11.09"]
[WhiteClock "0:00:19"]
[BlackClock "0:01:18"]

1. d4 {[%clk 0:03:00]}  d5 {[%clk 0:02:59]} 2. c4 {[%clk 0:03:00]}  c6 {[%clk 0:02:58]} 3. Nc3 {[%clk 0:02:59]}  Nf6 {[%clk 0:02:58]} 4. Nf3 {[%clk 0:02:58]}  a6 {[%clk 0:02:59]} 5. c5 {[%clk 0:02:50]}  Bg4 {[%clk 0:02:58]} 6. Ne5 {[%clk 0:02:49]}  Bf5 {[%clk 0:02:59]} 7. Bf4 {[%clk 0:02:40]}  Nbd7 {[%clk 0:02:59]} 8. e3 {[%clk 0:02:33]}  Nxe5 {[%clk 0:02:59]} 9. Bxe5 {[%clk 0:02:31]}  Nd7 {[%clk 0:02:59]} 10. Bg3 {[%clk 0:02:30]}  e5 {[%clk 0:02:59]} 11. b4 {[%clk 0:02:26]}  exd4 {[%clk 0:02:57]} 12. exd4 {[%clk 0:02:20]}  Be7 {[%clk 0:02:57]} 13. Qf3 {[%clk 0:02:15]}  Bg6 {[%clk 0:02:53]} 14. h4 {[%clk 0:02:14]}  h6 {[%clk 0:02:52]} 15. h5 {[%clk 0:02:11]}  Bh7 {[%clk 0:02:52]} 16. Bd3 {[%clk 0:02:05]}  Bxd3 {[%clk 0:02:51]} 17. Qxd3 {[%clk 0:02:06]}  O-O {[%clk 0:02:50]} 18. O-O {[%clk 0:02:05]}  Re8 {[%clk 0:02:46]} 19. Rfe1 {[%clk 0:01:55]}  Nf6 {[%clk 0:02:44]} 20. Qf3 {[%clk 0:01:54]}  Qd7 {[%clk 0:02:42]} 21. Be5 {[%clk 0:01:51]}  Qg4 {[%clk 0:02:37]} 22. Qxg4 {[%clk 0:01:38]}  Nxg4 {[%clk 0:02:36]} 23. f3 {[%clk 0:01:39]}  Nxe5 {[%clk 0:02:34]} 24. dxe5 {[%clk 0:01:32]}  Bg5 {[%clk 0:02:34]} 25. Re2 {[%clk 0:01:27]}  f6 {[%clk 0:02:29]} 26. e6 {[%clk 0:01:16]}  f5 {[%clk 0:02:29]} 27. Na4 {[%clk 0:01:06]}  Re7 {[%clk 0:02:21]} 28. g3 {[%clk 0:01:02]}  f4 {[%clk 0:02:14]} 29. g4 {[%clk 0:00:56]}  Rae8 {[%clk 0:02:12]} 30. Rae1 {[%clk 0:00:56]}  Bh4 {[%clk 0:02:12]} 31. Rd1 {[%clk 0:00:46]}  Rxe6 {[%clk 0:02:12]} 32. Rxe6 {[%clk 0:00:47]}  Rxe6 {[%clk 0:02:12]} 33. Nb6 {[%clk 0:00:40]}  Kf7 {[%clk 0:02:08]} 34. Nc8 {[%clk 0:00:39]}  Be7 {[%clk 0:02:01]} 35. Kf2 {[%clk 0:00:37]}  Re3 {[%clk 0:01:52]} 36. Rb1 {[%clk 0:00:31]}  Ra3 {[%clk 0:01:47]} 37. Rb2 {[%clk 0:00:30]}  Ke6 {[%clk 0:01:40]} 38. Re2+ {[%clk 0:00:30]}  Kd7 {[%clk 0:01:41]} 39. Nxe7 {[%clk 0:00:29]}  Ra4 {[%clk 0:01:34]} 40. Nf5 {[%clk 0:00:26]}  Rxb4 {[%clk 0:01:34]} 41. Re7+ {[%clk 0:00:25]}  Kc8 {[%clk 0:01:32]} 42. Rxg7 {[%clk 0:00:26]}  Rb2+ {[%clk 0:01:28]} 43. Kf1 {[%clk 0:00:26]}  Rxa2 {[%clk 0:01:29]} 44. g5 {[%clk 0:00:20]}  hxg5 {[%clk 0:01:27]} 45. h6 {[%clk 0:00:20]}  Rh2 {[%clk 0:01:22]} 46. h7 {[%clk 0:00:19]}  a5 {[%clk 0:01:22]} 47. Nd6+ {[%clk 0:00:17]}  Kd8 {[%clk 0:01:18]} 48. Rg8+ {[%clk 0:00:18]}  Kd7 {[%clk 0:01:18]} 49. h8=Q {[%clk 0:00:17]}  Rxh8 {[%clk 0:01:18]} 50. Rxh8 {[%clk 0:00:18]}  b6 {[%clk 0:01:18]} 51. cxb6 {[%clk 0:00:18]}  Kxd6 {[%clk 0:01:18]} 52. b7 {[%clk 0:00:19]} 1-0


[Site "https://www.chess.com"]

[Event "Titled Tuesday Blitz November 08 Late 2022"]
[White "Zakhartsov, Vladimir"]
[Black "Richter, Paul"]
[WhiteFideId "4145097"]
[BlackFideId "2046350"]
[WhiteElo "2838"]
[BlackElo "2567"]
[Result "1-0"]
[Round "02"]
[TimeControl "180+1"]
[Date "2022.11.09"]
[WhiteClock "0:02:25"]
[BlackClock "0:02:10"]

1. d4 {[%clk 0:02:59]}  Nf6 {[%clk 0:02:59]} 2. c4 {[%clk 0:02:59]}  g6 {[%clk 0:02:59]} 3. Nc3 {[%clk 0:03:00]}  Bg7 {[%clk 0:02:59]} 4. e4 {[%clk 0:03:00]}  O-O {[%clk 0:03:00]} 5. h3 {[%clk 0:02:59]}  d6 {[%clk 0:03:00]} 6. Be3 {[%clk 0:02:59]}  Na6 {[%clk 0:02:58]} 7. Nf3 {[%clk 0:02:46]}  Qe8 {[%clk 0:02:58]} 8. Bd3 {[%clk 0:02:43]}  e5 {[%clk 0:02:57]} 9. O-O {[%clk 0:02:41]}  Nh5 {[%clk 0:02:53]} 10. Re1 {[%clk 0:02:35]}  exd4 {[%clk 0:02:24]} 11. Bxd4 {[%clk 0:02:31]}  Bxd4 {[%clk 0:02:22]} 12. Nxd4 {[%clk 0:02:31]}  Nf4 {[%clk 0:02:21]} 13. Bf1 {[%clk 0:02:31]}  Nc5 {[%clk 0:02:17]} 14. Qd2 {[%clk 0:02:26]}  Nce6 {[%clk 0:02:10]} 15. Nd5 {[%clk 0:02:25]} 1-0


[Site "https://www.chess.com"]